bitfinex/quotes_BTCUSD_20250403
["timestamp","ask_amount","ask_price","bid_price","bid_amount"]
[1743686149908,0.244313,81862.0,81861.0,0.1167556]
[1743686150115,0.03,81862.0,81861.0,0.1167556]
[1743686150517,0.274313,81862.0,81861.0,0.1167556]
[1743686150735,0.274313,81862.0,81861.0,0.12057272]
[1743686151346,0.03,81862.0,81861.0,0.12057272]
[1743686151698,0.274313,81862.0,81861.0,0.12057272]
[1743686152159,0.03,81862.0,81861.0,0.12057272]
[1743686152406,0.274313,81862.0,81861.0,0.13278795]
[1743686152617,0.03,81862.0,81861.0,0.13278795]
[1743686152745,0.03,81862.0,81861.0,0.38931895]
[1743686153153,0.0498,81874.0,81873.0,0.256494]
[1743686153337,0.0461368,81879.0,81874.0,0.012213]
[1743686153539,0.0003368,81879.0,81874.0,0.3732456]
[1743686153953,0.0003368,81879.0,81874.0,0.7132456]
[1743686154606,0.0003368,81879.0,81874.0,0.72316815]
[1743686154947,0.0003368,81879.0,81874.0,0.74980473]
[1743686155278,0.0003368,81879.0,81874.0,0.76201996]
[1743686156365,0.0003368,81879.0,81878.0,0.61101885]
[1743686156574,0.0003366,81896.0,81895.0,0.256425]
[1743686156780,0.0003366,81896.0,81895.0,0.90136145]
[1743686158120,0.0003366,81896.0,81895.0,0.91357668]
[1743686158325,0.0003366,81896.0,81895.0,0.9173938]
[1743686158525,0.0003366,81896.0,81895.0,0.90285295]
[1743686158730,0.0003366,81896.0,81895.0,0.91189839]
[1743686159556,0.0003366,81896.0,81895.0,0.89968316]
[1743686160119,0.0003366,81896.0,81895.0,0.64325816]
[1743686160335,0.0003366,81896.0,81895.0,0.65546816]
[1743686160541,0.0003366,81896.0,81895.0,0.67000901]
[1743686161765,0.0003366,81896.0,81895.0,0.91422401]
[1743686162315,0.012207,81916.0,81907.0,0.012208]
[1743686162517,0.012207,81916.0,81908.0,0.1167556]
[1743686162518,0.00046366,81912.0,81908.0,0.1167556]
[1743686162714,0.07046366,81912.0,81911.0,0.256375]
[1743686162940,0.07046366,81912.0,81911.0,0.5466106]
[1743686163515,0.07046366,81912.0,81911.0,0.2902356]
[1743686165790,0.07046366,81912.0,81911.0,0.8744026]
[1743686165992,0.00046366,81912.0,81911.0,0.8866106]
[1743686166982,0.00046366,81912.0,81911.0,0.8744026]
[1743686167395,0.01046366,81912.0,81911.0,0.8865306]
[1743686167995,0.01046366,81912.0,81911.0,0.89034772]
[1743686168796,0.01046366,81912.0,81911.0,0.63397272]
[1743686169011,0.25462766,81912.0,81911.0,0.63397272]
[1743686169228,0.01046366,81912.0,81911.0,0.63397272]
[1743686169402,0.01046366,81912.0,81911.0,0.87813972]
[1743686169565,0.01046366,81912.0,81911.0,0.89034772]
[1743686170415,0.01046366,81912.0,81911.0,0.90488857]
[1743686170751,0.00046366,81912.0,81911.0,0.90488857]
[1743686171649,0.00046366,81912.0,81911.0,0.8865306]
[1743686173284,0.00046366,81912.0,81911.0,0.8743226]
[1743686173454,0.02046366,81912.0,81911.0,0.6301556]
[1743686173653,0.02046366,81912.0,81911.0,0.8743226]
[1743686173853,0.02046366,81912.0,81911.0,0.6301556]
[1743686174054,0.26451617,81912.0,81911.0,0.6301556]
[1743686174281,0.02035217,81912.0,81911.0,0.8743226]
[1743686174484,0.02035217,81912.0,81911.0,0.8865306]
[1743686176555,0.02035217,81912.0,81911.0,0.89034772]
[1743686178125,0.02035217,81912.0,81911.0,0.90488857]
[1743686179932,0.02035217,81912.0,81911.0,0.91443673]
[1743686180130,0.02035217,81912.0,81911.0,0.91439673]
[1743686181157,0.27672417,81912.0,81911.0,0.31802173]
[1743686181333,0.37552417,81912.0,81911.0,0.02814613]
[1743686182682,0.256403,81902.0,81901.0,0.00610216]
[1743686182878,0.495903,81902.0,81901.0,0.00610216]
[1743686183932,0.495903,81902.0,81900.0,4e-05]
[1743686183933,0.256406,81901.0,81900.0,4e-05]
[1743686184141,0.326406,81901.0,81900.0,4e-05]
[1743686184342,0.326406,81901.0,81900.0,0.1167956]
[1743686184343,0.314197,81901.0,81900.0,0.1167956]
[1743686184729,0.07,81901.0,81900.0,0.1167956]
[1743686184935,0.31408489,81901.0,81900.0,0.1167956]
[1743686185836,0.32629389,81901.0,81900.0,0.1167956]
[1743686186046,0.32629389,81901.0,81900.0,0.12289776]
[1743686186604,0.31408489,81901.0,81900.0,0.12289776]
[1743686186807,0.32629389,81901.0,81900.0,0.12289776]
[1743686187804,0.32629389,81901.0,81900.0,0.00614216]
[1743686188591,0.37239389,81901.0,81900.0,4e-05]
[1743686188761,0.37239389,81901.0,81895.0,0.0001682]
[1743686188762,0.349522,81896.0,81895.0,3.6e-07]
[1743686188985,0.349522,81896.0,81871.0,0.173]
[1743686188986,0.256497,81872.0,81871.0,0.173]
[1743686189121,0.256497,81872.0,81871.0,0.1167556]
[1743686189122,0.379597,81872.0,81871.0,0.1167556]
[1743686193085,0.03,81872.0,81871.0,0.38099963]
[1743686193285,0.0475,81888.0,81887.0,0.244239]
[1743686193495,0.381736,81888.0,81887.0,0.1167556]
[1743686193699,0.393947,81888.0,81887.0,0.1167556]
[1743686194304,0.381736,81888.0,81887.0,0.1167556]
[1743686194664,0.393947,81888.0,81887.0,0.1167556]
[1743686195703,0.256462,81883.0,81882.0,0.00763254]
[1743686195869,0.516462,81883.0,81882.0,0.00763254]
[1743686196059,0.26,81883.0,81882.0,0.12438814]
[1743686196263,0.50425,81883.0,81882.0,0.12438814]
[1743686196665,0.26,81883.0,81882.0,0.1167556]
[1743686196891,0.50425,81883.0,81882.0,0.1167556]
[1743686197126,0.26,81883.0,81882.0,0.1167556]
[1743686197435,0.26,81883.0,81882.0,0.3610086]
[1743686197604,0.26,81883.0,81882.0,0.3732206]
[1743686197806,0.50425,81883.0,81882.0,0.1167556]
[1743686198018,0.516462,81883.0,81882.0,0.1167556]
[1743686198219,0.26,81883.0,81882.0,0.1167556]
[1743686199668,0.256478,81878.0,81877.0,0.00381597]
[1743686199845,0.256478,81878.0,81872.0,0.00763254]
[1743686199846,0.256494,81873.0,81872.0,0.18426851]
[1743686200045,0.402494,81873.0,81872.0,0.01138851]
[1743686200450,0.402494,81873.0,81872.0,0.00375597]
[1743686201240,0.304897,81872.0,81871.0,0.00011149]
[1743686201439,0.544897,81872.0,81871.0,0.00011149]
[1743686202644,0.544897,81872.0,81871.0,0.00027979]
[1743686204368,0.544897,81872.0,81841.0,0.004]
[1743686204369,0.244373,81843.0,81841.0,0.004]
[1743686204523,0.244373,81843.0,81842.0,0.2895556]
[1743686204524,0.274373,81843.0,81842.0,0.2895556]
[1743686204723,0.03,81843.0,81842.0,0.2895556]
[1743686204923,0.03,81843.0,81842.0,0.5461466]
[1743686205172,0.03,81843.0,81842.0,0.55813923]
[1743686205375,0.03,81843.0,81842.0,0.30154823]
[1743686205596,0.03,81843.0,81842.0,0.55813923]
[1743686205999,0.03,81843.0,81842.0,0.56747291]
[1743686206903,0.27437,81843.0,81842.0,0.31088191]
[1743686207052,0.03,81843.0,81842.0,0.55525491]
[1743686207251,0.03,81843.0,81842.0,0.31088191]
[1743686207639,0.256591,81842.0,81841.0,0.00413907]
[1743686207847,0.326591,81842.0,81841.0,0.00413907]
[1743686213875,0.31656,81852.0,81851.0,0.17272]
[1743686214343,0.31656,81852.0,81851.0,0.2894756]
[1743686214344,0.06,81852.0,81851.0,0.2894756]
[1743686214545,0.06,81852.0,81851.0,0.5460386]
[1743686215233,0.06,81852.0,81851.0,0.55367114]
[1743686217179,0.06,81852.0,81851.0,0.29710814]
[1743686217387,0.31656,81852.0,81851.0,0.29710814]
[1743686218407,0.36616,81852.0,81851.0,0.29710814]
[1743686218587,0.36616,81852.0,81843.0,0.00381682]
[1743686218588,0.256582,81845.0,81844.0,0.00763254]
[1743686218798,0.516582,81845.0,81844.0,0.00763254]
[1743686219415,0.256585,81844.0,81843.0,0.00381682]
[1743686219623,0.386585,81844.0,81843.0,0.12057242]
[1743686219800,0.386585,81844.0,81843.0,0.1167556]
[1743686221231,0.305788,81843.0,81842.0,0.00398502]
[1743686221389,0.875788,81843.0,81842.0,0.00398502]
[1743686221818,0.535788,81843.0,81842.0,0.00398502]
[1743686222046,0.535788,81843.0,81842.0,0.12074062]
[1743686222659,0.535788,81843.0,81842.0,0.00398502]
[1743686222865,0.540675,81843.0,81842.0,0.0001682]
[1743686224459,0.540675,81843.0,81842.0,2e-07]
[1743686224664,0.588075,81843.0,81842.0,2e-07]
[1743686226102,0.256591,81842.0,81841.0,2.7e-07]
[1743686226303,0.303097,81840.0,81839.0,6.7e-07]
[1743686226503,0.596601,81839.0,81838.0,9.7e-07]
[1743686226698,0.903101,81839.0,81838.0,9.7e-07]
[1743686231319,0.563101,81839.0,81838.0,9.7e-07]
[1743686231722,0.504382,81839.0,81838.0,0.11675657]
[1743686231963,0.516601,81839.0,81838.0,0.11675657]
[1743686232169,0.26,81839.0,81838.0,0.11675657]
[1743686232347,0.516601,81839.0,81838.0,0.11675657]
[1743686232684,0.504382,81839.0,81838.0,0.11675657]
[1743686232994,0.26,81839.0,81838.0,0.12439405]
[1743686233396,0.516601,81839.0,81838.0,0.00763845]
[1743686233817,0.516601,81839.0,81838.0,0.12439405]
[1743686234140,0.516601,81839.0,81838.0,0.13661223]
[1743686234553,0.516601,81839.0,81838.0,0.01985663]
[1743686234760,0.26,81839.0,81838.0,0.01985663]
[1743686234961,0.504382,81839.0,81838.0,0.13661223]
[1743686236167,0.516601,81839.0,81838.0,0.14043133]
[1743686236822,0.504382,81839.0,81838.0,0.14043133]
[1743686237138,0.2462763,81839.0,81838.0,0.14043133]
[1743686237649,0.284382,81839.0,81838.0,0.14043133]
[1743686238068,0.284382,81839.0,81838.0,0.12821315]
[1743686238412,0.04,81839.0,81838.0,0.12821315]
[1743686239258,0.04,81839.0,81838.0,0.14043133]
[1743686240046,0.012216,81859.0,81848.0,0.012217]
[1743686240243,0.012216,81859.0,81845.0,0.012218]
[1743686240244,0.15,81857.0,81849.0,0.1167556]
[1743686240447,0.244346,81852.0,81849.0,0.1167556]
[1743686240763,0.244349,81850.0,81849.0,0.1167556]
[1743686240962,0.02,81850.0,81849.0,0.1167556]
[1743686241126,0.264349,81850.0,81849.0,0.1167556]
[1743686241497,0.276566,81850.0,81849.0,0.12439308]
[1743686241897,0.276566,81850.0,81849.0,0.12821218]
[1743686242295,0.02,81850.0,81849.0,0.38478118]
[1743686242474,0.0003364,81871.0,81866.0,0.012215]
[1743686242681,0.0903364,81871.0,81870.0,0.244289]
[1743686242914,0.09047536,81871.0,81870.0,0.3732586]
[1743686243453,0.00047536,81871.0,81870.0,0.38568496]
[1743686243662,0.00047536,81871.0,81870.0,0.74022581]
[1743686244091,0.00047536,81871.0,81870.0,1.45751895]
[1743686244223,0.036627,81894.0,81893.0,0.256432]
[1743686244420,0.066627,81894.0,81893.0,0.5454276]
[1743686244627,0.03046337,81894.0,81893.0,0.2889956]
[1743686245227,0.03046337,81894.0,81893.0,0.3012066]
[1743686245446,0.00046337,81894.0,81893.0,0.30884408]
[1743686245649,0.00046337,81894.0,81893.0,0.31266318]
[1743686245860,0.00046337,81894.0,81893.0,0.65266318]
[1743686246453,0.00046337,81894.0,81893.0,0.66720403]
[1743686246736,0.00046337,81894.0,81893.0,0.67636764]
[1743686248595,0.00046337,81894.0,81893.0,0.67254854]
[1743686249195,0.004,81899.0,81898.0,0.626416]
[1743686249375,0.00413893,81899.0,81898.0,0.75771245]
[1743686250594,0.00413893,81899.0,81898.0,0.73271245]
[1743686250793,0.00413893,81899.0,81898.0,0.75271245]
[1743686251817,0.00447533,81899.0,81898.0,0.75271245]
[1743686252631,0.00447533,81899.0,81898.0,0.72771245]
[1743686252836,0.00447533,81899.0,81898.0,0.89971245]
[1743686253040,0.00447533,81899.0,81898.0,0.72771245]
[1743686253243,0.00447533,81899.0,81898.0,0.89971245]
[1743686253466,0.00447533,81899.0,81898.0,1.58401245]
[1743686254460,0.00447533,81899.0,81898.0,1.59623063]
[1743686254661,0.00447533,81899.0,81898.0,1.60615825]
[1743686255852,0.00447533,81899.0,81898.0,0.9072374]
[1743686257330,0.00447533,81899.0,81898.0,0.6508214]
[1743686257492,0.00447533,81899.0,81898.0,0.6629914]
[1743686257670,0.00447533,81899.0,81898.0,0.9071974]
[1743686257873,0.00447533,81899.0,81898.0,0.89497922]
[1743686258139,0.00447533,81899.0,81898.0,0.8850516]
[1743686258342,0.00447533,81899.0,81898.0,0.89959245]
[1743686259244,0.00447533,81899.0,81898.0,1.58389245]
[1743686259674,0.00447533,81899.0,81898.0,1.58771155]
[1743686260260,0.00447533,81899.0,81898.0,1.59992973]
[1743686261170,0.00447533,81899.0,81898.0,1.60603825]
[1743686261603,0.00447533,81899.0,81898.0,1.60885106]
[1743686263143,0.00447533,81899.0,81898.0,1.62129457]
[1743686265374,0.0003364,81913.0,81911.0,0.256375]
[1743686265587,0.0103364,81912.0,81911.0,0.3731306]
[1743686266156,0.0103364,81912.0,81911.0,0.4006051]
[1743686266591,0.0103364,81912.0,81911.0,0.1442301]
[1743686266793,0.0103364,81912.0,81911.0,0.5723251]
[1743686267567,0.0103364,81912.0,81911.0,0.58225272]
[1743686269726,0.0103364,81912.0,81911.0,0.32587772]
[1743686269933,0.2545004,81912.0,81911.0,0.15415772]
[1743686270111,0.0103364,81912.0,81911.0,0.32579772]
[1743686270462,0.0103364,81912.0,81911.0,0.56996472]
[1743686270890,0.0103364,81912.0,81911.0,0.58217272]
[1743686272028,0.0103364,81912.0,81911.0,0.32579772]
[1743686272266,0.0103364,81912.0,81911.0,0.58217272]
[1743686272817,0.244153,81916.0,81913.0,0.244161]
[1743686273045,0.04,81916.0,81915.0,0.244155]
[1743686273264,0.04,81916.0,81915.0,0.1167556]
[1743686273445,0.284152,81916.0,81915.0,0.1167556]
[1743686274049,0.296359,81916.0,81915.0,0.1167556]
[1743686274410,0.296359,81916.0,81915.0,0.1442301]
[1743686274604,0.284152,81916.0,81915.0,0.1442301]
[1743686274806,0.04,81916.0,81915.0,0.1442301]
[1743686275024,0.03989897,81916.0,81915.0,0.15415772]
[1743686275226,0.28405097,81916.0,81915.0,0.15415772]
[1743686275509,0.03989897,81916.0,81915.0,0.39235371]
[1743686275908,0.03989897,81916.0,81915.0,0.14819871]
[1743686276264,0.28405097,81916.0,81915.0,0.14819871]
[1743686276473,0.03989897,81916.0,81915.0,0.14819871]
[1743686277249,0.28405097,81916.0,81915.0,0.14819871]
[1743686278524,0.29625797,81916.0,81915.0,0.14819871]
[1743686278747,0.53915797,81916.0,81915.0,0.14819871]
[1743686278951,0.63645797,81916.0,81915.0,0.0221458]
[1743686279157,0.256387,81907.0,81906.0,0.02290726]
[1743686279331,0.65122978,81907.0,81906.0,0.02290726]
[1743686279995,0.256406,81901.0,81900.0,4e-05]
[1743686280145,0.486406,81901.0,81900.0,4e-05]
[1743686280552,0.57315031,81901.0,81900.0,4e-05]
[1743686280753,0.01221,81896.0,81895.0,5.6e-07]
[1743686280950,0.8448233,81896.0,81895.0,5.6e-07]
[1743686281155,0.84256631,81896.0,81895.0,5.6e-07]
[1743686282299,0.256432,81893.0,81892.0,0.10841702]
[1743686282496,0.32694431,81893.0,81892.0,0.22517262]
[1743686282649,0.2894,81893.0,81892.0,0.22517262]
[1743686283032,0.2894,81893.0,81892.0,0.46939662]
[1743686283240,0.24,81893.0,81892.0,0.48160762]
[1743686283472,0.24,81893.0,81892.0,0.3731906]
[1743686283681,0.484221,81893.0,81892.0,0.1167556]
[1743686283892,0.496432,81893.0,81892.0,0.1167556]
[1743686286519,0.012215,81865.0,81852.0,0.012217]
[1743686286720,0.02,81865.0,81856.0,0.24433]
[1743686286924,0.244319,81860.0,81858.0,0.34]
[1743686287129,0.244312,81863.0,81859.0,0.3610746]
[1743686287337,0.2429,81860.0,81859.0,0.1167556]
[1743686287447,0.2429,81860.0,81859.0,0.3732936]
[1743686288421,0.2529,81860.0,81859.0,0.1167556]
[1743686288594,0.497219,81860.0,81859.0,0.1167556]
[1743686288816,0.509434,81860.0,81859.0,0.1167556]
[1743686290619,0.497219,81860.0,81859.0,0.1167556]
[1743686291138,0.2529,81860.0,81859.0,0.1167556]
[1743686291343,0.2429,81860.0,81859.0,0.71573674]
[1743686291702,0.497219,81860.0,81859.0,0.1167556]
[1743686293671,0.509434,81860.0,81859.0,0.1167556]
[1743686293873,0.25656,81852.0,81849.0,0.00046337]
[1743686294077,0.256566,81850.0,81849.0,0.00046337]
[1743686294275,0.286566,81850.0,81849.0,0.11721897]
[1743686294473,0.522966,81850.0,81849.0,0.11721897]
[1743686295140,0.2664,81850.0,81849.0,0.11721897]
[1743686295349,0.510749,81850.0,81849.0,0.11721897]
[1743686296216,0.522966,81850.0,81849.0,0.11721897]
[1743686296614,0.522966,81850.0,81849.0,0.00046337]
[1743686297232,0.765866,81850.0,81849.0,0.00046337]
[1743686298084,0.812266,81850.0,81849.0,0.00046337]
[1743686298259,0.812266,81850.0,81849.0,0.00063147]
[1743686298576,0.812266,81850.0,81849.0,0.01275203]
[1743686298874,0.812266,81850.0,81849.0,0.01279203]
[1743686301643,0.800049,81850.0,81849.0,0.01279203]
[1743686301839,0.800049,81850.0,81849.0,0.12954763]
[1743686302039,0.812266,81850.0,81849.0,0.01279203]
[1743686305681,0.990049,81850.0,81849.0,0.12954763]
[1743686306142,1.002266,81850.0,81849.0,0.12954763]
[1743686307248,1.002266,81850.0,81849.0,0.01279203]
[1743686309637,0.7457,81850.0,81849.0,0.01279203]
[1743686309835,0.7457,81850.0,81849.0,0.38611663]
[1743686310231,0.990049,81850.0,81849.0,0.12954763]
[1743686310454,1.002266,81850.0,81849.0,0.01279203]
[1743686310636,0.990049,81850.0,81849.0,0.01279203]
[1743686310855,1.002266,81850.0,81849.0,0.01279203]
[1743686311425,0.990049,81850.0,81849.0,0.01279203]
[1743686311738,1.002266,81850.0,81849.0,0.01279203]
[1743686311935,0.990049,81850.0,81849.0,0.01279203]
[1743686312187,0.7457,81850.0,81849.0,0.37389963]
[1743686312459,0.7457,81850.0,81849.0,0.38611663]
[1743686312679,0.7457,81850.0,81849.0,0.12954763]
[1743686313547,0.7457,81850.0,81849.0,0.37389963]
[1743686314114,0.7457,81850.0,81849.0,0.38611663]
[1743686314935,0.7457,81850.0,81849.0,0.37389963]
[1743686315546,0.7457,81850.0,81849.0,0.38611663]
[1743686317104,0.7457,81850.0,81849.0,0.12954763]
[1743686317311,1.002266,81850.0,81849.0,0.12954763]
[1743686317507,1.050966,81850.0,81849.0,0.01279203]
[1743686318968,1.050966,81850.0,81849.0,0.02279203]
[1743686319452,0.7944,81850.0,81849.0,0.13954763]
[1743686319601,0.7457,81850.0,81849.0,0.13954763]
[1743686319807,0.990049,81850.0,81849.0,0.13954763]
[1743686320228,1.002266,81850.0,81849.0,0.13954763]
[1743686320787,0.990049,81850.0,81849.0,0.13954763]
[1743686321238,0.990049,81850.0,81849.0,0.02279203]
[1743686321239,1.002266,81850.0,81849.0,0.02279203]
[1743686322296,0.990049,81850.0,81849.0,0.02279203]
[1743686322707,0.7457,81850.0,81849.0,0.39611663]
[1743686323309,0.7457,81850.0,81849.0,0.38389963]
[1743686324142,0.7457,81850.0,81849.0,0.39611663]
[1743686324320,0.7457,81850.0,81849.0,0.38399607]
[1743686325302,0.7457,81850.0,81849.0,0.12742707]
[1743686325663,0.7457,81850.0,81849.0,0.37177907]
[1743686326269,0.7457,81850.0,81849.0,0.38399607]
[1743686326469,0.7157,81850.0,81849.0,1.42283692]
[1743686327960,0.7157,81850.0,81849.0,0.73853692]
[1743686328167,0.7157,81850.0,81849.0,0.72399607]
[1743686330790,0.7157,81850.0,81849.0,1.42283692]
[1743686333494,0.7157,81850.0,81849.0,1.59355692]
[1743686335652,0.7157,81850.0,81849.0,1.42283692]
[1743686335858,0.0478,81893.0,81891.0,0.244227]
[1743686336063,0.4996362,81892.0,81891.0,0.38531416]
[1743686336236,0.7360362,81892.0,81891.0,0.37310316]
[1743686336641,0.7360362,81892.0,81891.0,0.12887616]
[1743686337113,0.7360362,81892.0,81891.0,0.37310316]
[1743686337260,0.7360362,81892.0,81891.0,0.38531416]
[1743686337484,0.7160362,81892.0,81891.0,0.39985501]
[1743686338010,0.7160362,81892.0,81891.0,0.41205143]
[1743686338969,0.7160362,81892.0,81891.0,0.76126201]
[1743686341233,2e-07,81892.0,81891.0,0.96182201]
[1743686341699,2e-07,81892.0,81891.0,1.64612201]
[1743686341902,2e-07,81892.0,81891.0,1.64112201]
[1743686342108,0.4730002,81892.0,81891.0,1.61612201]
[1743686342258,0.4730002,81892.0,81891.0,1.61608201]
[1743686343081,0.4730002,81892.0,81891.0,1.64108201]
[1743686343866,0.7094002,81892.0,81891.0,1.64608201]
[1743686344781,0.7094002,81892.0,81891.0,1.61608201]
[1743686344992,0.7094002,81892.0,81891.0,1.61604201]
[1743686345446,0.7094002,81892.0,81891.0,1.27604201]
[1743686346191,0.7094002,81892.0,81891.0,1.62104201]
[1743686346389,0.0003362,81896.0,81895.0,0.601425]
[1743686346591,0.7161362,81896.0,81895.0,0.73272145]
[1743686349840,0.0972,81925.0,81923.0,0.256337]
[1743686350048,0.0104753,81924.0,81923.0,0.91011401]
[1743686350274,0.0004753,81924.0,81923.0,0.91011401]
[1743686350474,0.2368753,81924.0,81923.0,0.91011401]
[1743686353201,0.2368753,81924.0,81923.0,0.91912799]
[1743686353451,0.2368753,81924.0,81923.0,1.60342799]
[1743686353860,0.2368753,81924.0,81923.0,1.60842799]
[1743686354069,0.2368753,81924.0,81923.0,1.62842799]
[1743686354285,0.2368753,81924.0,81923.0,1.63342799]
[1743686354909,0.43735785,81924.0,81923.0,1.63342799]
[1743686355117,0.37633707,81924.0,81923.0,1.63342799]
[1743686355539,0.35366707,81924.0,81923.0,1.63342799]
[1743686355946,0.35366707,81924.0,81923.0,2.96664799]
[1743686356373,0.004,81929.0,81928.0,0.626321]
[1743686356580,0.004,81929.0,81928.0,1.98042345]
[1743686356764,0.4775,81929.0,81928.0,1.77130145]
[1743686356899,0.4775,81929.0,81928.0,1.52195345]
[1743686357114,9e-07,81931.0,81930.0,0.626315]
[1743686357321,0.004337,81959.0,81948.0,0.012202]
[1743686357526,0.00030718,81952.0,81951.0,0.38754645]
[1743686357943,0.23730718,81952.0,81951.0,0.38754645]
[1743686358164,0.23730718,81952.0,81951.0,1.41684645]
[1743686358377,0.2133743,81952.0,81951.0,1.42614918]
[1743686358594,0.2133743,81952.0,81951.0,1.43810704]
[1743686359061,0.004337,81959.0,81952.0,0.39674285]
[1743686359258,0.0003364,81974.0,81973.0,0.35954085]
[1743686359466,0.2373364,81974.0,81973.0,1.35007601]
[1743686359700,0.2373364,81974.0,81973.0,1.33787701]
[1743686359894,0.3433344,81974.0,81973.0,0.29903616]
[1743686360142,0.3511364,81974.0,81973.0,0.12887616]
[1743686360760,0.3633344,81974.0,81973.0,0.12887616]
[1743686361359,0.3633344,81974.0,81973.0,0.01212056]
[1743686361795,0.0487,81961.0,81960.0,0.17008]
[1743686361997,0.02,81961.0,81960.0,0.2868356]
[1743686362133,0.243982,81973.0,81961.0,0.34]
[1743686362340,0.03,81973.0,81972.0,0.1167556]
[1743686362566,0.03,81973.0,81972.0,1.16059645]
[1743686362778,0.0003364,81978.0,81975.0,0.01454085]
[1743686362930,0.00079923,81978.0,81977.0,0.1167556]
[1743686363134,0.00079923,81978.0,81977.0,0.65601369]
[1743686363367,0.00079923,81978.0,81977.0,0.64137645]
[1743686363773,0.00079923,81978.0,81977.0,0.2867956]
[1743686364213,0.01079923,81978.0,81977.0,0.2868356]
[1743686364875,0.01079923,81978.0,81977.0,0.2868756]
[1743686365074,0.07249723,81978.0,81977.0,0.1168356]
[1743686365326,0.12189723,81978.0,81977.0,0.1168756]
[1743686365917,0.10969923,81978.0,81977.0,0.1169156]
[1743686366339,0.10969923,81978.0,81977.0,0.1169556]
[1743686366863,0.01079923,81978.0,81977.0,0.1169956]
[1743686367035,0.00079923,81978.0,81977.0,1.41444379]
[1743686367254,0.00079923,81978.0,81977.0,1.41700445]
[1743686367456,0.00079923,81978.0,81977.0,1.44200445]
[1743686367612,0.00079923,81978.0,81977.0,1.41700445]
[1743686367825,0.00079923,81978.0,81977.0,1.16803445]
[1743686368240,0.00079923,81978.0,81977.0,0.47534768]
[1743686368444,0.00079923,81978.0,81977.0,0.46080683]
[1743686368647,0.00079923,81978.0,81977.0,0.657502]
[1743686369012,0.00079923,81978.0,81977.0,0.64296115]
[1743686369371,0.01079923,81978.0,81977.0,0.64296115]
[1743686369575,0.01079923,81978.0,81977.0,0.31296115]
[1743686369958,0.01079923,81978.0,81977.0,0.31530768]
[1743686370200,0.01079923,81978.0,81977.0,0.89927768]
[1743686370419,0.00079923,81978.0,81977.0,0.65530768]
[1743686370613,0.00079923,81978.0,81977.0,1.59696445]
[1743686370812,0.00079923,81978.0,81977.0,1.62196445]
[1743686372322,0.00079923,81978.0,81977.0,1.62577568]
[1743686372531,0.00079923,81978.0,81977.0,1.33960768]
[1743686372758,0.00079923,81978.0,81977.0,1.33952768]
[1743686373203,0.243929,81991.0,81978.0,0.35454085]
[1743686373422,0.01,81991.0,81987.0,0.34]
[1743686373663,0.01,81991.0,81988.0,0.1167556]
[1743686373839,0.01,81991.0,81990.0,0.1167556]
[1743686374256,0.253929,81991.0,81990.0,0.1167556]
[1743686375493,0.21777992,81993.0,81990.0,0.1167556]
[1743686375704,0.243929,81991.0,81990.0,0.1167556]
[1743686375898,0.253929,81991.0,81990.0,0.1167556]
[1743686377155,0.266125,81991.0,81990.0,0.1167556]
[1743686377606,0.25615,81983.0,81982.0,0.1698]
[1743686377805,0.27615,81983.0,81982.0,0.2865556]
[1743686377992,0.02,81983.0,81982.0,0.2865556]
[1743686379446,0.263953,81983.0,81982.0,0.2865556]
[1743686380476,0.27615,81983.0,81982.0,0.1167556]
[1743686380589,0.27615,81983.0,81982.0,0.12056691]
[1743686380797,0.27615,81983.0,81982.0,0.00385131]
[1743686380997,0.32245,81983.0,81982.0,0.00385131]
[1743686382067,0.37045,81983.0,81982.0,0.00385131]
[1743686382238,0.37045,81983.0,81982.0,4e-05]
[1743686382625,0.370618,81983.0,81982.0,4e-05]
[1743686383612,0.256165,81978.0,81977.0,0.01024]
[1743686383812,0.564565,81978.0,81977.0,0.01024]
[1743686385067,0.56470377,81978.0,81977.0,0.01024]
[1743686387588,0.56470377,81978.0,81977.0,0.01028]
[1743686394272,0.56470377,81978.0,81977.0,0.010616]
[1743686394675,0.60129577,81978.0,81977.0,0.010616]
[1743686395452,0.244072,81943.0,81942.0,0.34]
[1743686395582,0.244081,81940.0,81939.0,0.1167556]
[1743686395785,0.012201,81958.0,81940.0,0.41368]
[1743686395986,0.244037,81955.0,81946.0,0.1167556]
[1743686396213,0.244039,81954.0,81946.0,0.1167556]
[1743686396419,0.244048,81952.0,81947.0,0.1696]
[1743686396614,0.244048,81952.0,81948.0,0.1167556]
[1743686396615,0.244049,81951.0,81948.0,0.1167556]
[1743686396821,0.274049,81951.0,81949.0,0.1696]
[1743686397030,0.03,81951.0,81950.0,0.1167556]
[1743686397886,0.244018,81961.0,81950.0,0.47129645]
[1743686398126,0.0322,81961.0,81956.0,0.1167556]
[1743686398331,0.244026,81959.0,81956.0,0.1167556]
[1743686398547,0.244029,81958.0,81956.0,0.1167556]
[1743686398748,0.256231,81957.0,81956.0,0.1167556]
[1743686398958,0.266231,81957.0,81956.0,0.1167556]
[1743686399609,0.266231,81957.0,81947.0,0.00046283]
[1743686399610,0.256259,81948.0,81947.0,0.00046283]
[1743686399809,0.286259,81948.0,81947.0,0.11721843]
[1743686402461,0.274057,81948.0,81947.0,0.11721843]
[1743686402834,0.286259,81948.0,81947.0,0.11721843]
[1743686404473,0.332959,81948.0,81947.0,8.3e-07]
[1743686404674,0.256309,81932.0,81931.0,8.3e-07]
[1743686404871,0.590409,81932.0,81931.0,8.3e-07]
[1743686405070,0.590409,81932.0,81931.0,0.00013971]
[1743686405360,0.62702,81932.0,81931.0,0.00013971]
[1743686405999,0.62702,81932.0,81928.0,0.0003362]
[1743686406000,0.256318,81929.0,81928.0,9.1e-07]
[1743686406199,0.305243,81921.0,81920.0,3.7e-07]
[1743686406406,0.545243,81921.0,81920.0,3.7e-07]
[1743686407248,0.012207,81917.0,81901.0,0.004]
[1743686407423,0.244194,81902.0,81901.0,0.0041389]
[1743686407650,0.254194,81902.0,81901.0,0.1208945]
[1743686408058,0.266403,81902.0,81901.0,0.1208945]
[1743686410869,0.312303,81902.0,81901.0,0.1208945]
[1743686412809,0.266403,81902.0,81901.0,0.1208945]
[1743686413436,0.266403,81902.0,81901.0,0.0041789]
[1743686414856,0.315503,81902.0,81901.0,9e-07]
[1743686415016,0.320387,81902.0,81901.0,9e-07]
[1743686420433,0.271287,81902.0,81901.0,0.1167565]
[1743686421462,0.271287,81902.0,81901.0,9e-07]
[1743686428694,0.317287,81902.0,81901.0,9e-07]
[1743686428884,0.657287,81902.0,81901.0,9e-07]